[Event "Gideon Japhet ACP Open 2018"]
[Site "Jerusalem"]
[Date "2018.07.02"]
[Round "3"]
[White "Zisman, Philip"]
[Black "Boruchovsky, Avital"]
[Result "1/2-1/2"]
[ECO "A45"]
[WhiteElo "2293"]
[BlackElo "2558"]
[Annotator "ChessBase"]
[PlyCount "102"]
[EventDate "2018.07.01"]
[EventType "swiss"]
[EventCountry "ISR"]
[SourceTitle "playchess.com"]
[Source "ChessBase"]
[SourceQuality "1"]
[TimeControl "40/5400+30:1800+30"]

1. d4 {[%emt 0:00:00]} Nf6 {[%emt 0:00:00]} 2. Bg5 {[%emt 0:00:00]} d5 {[%emt 0:00:00]} 3. Bxf6 {[%emt 0:00:00]} gxf6 {[%emt 0:00:02]} 4. e3 {[%emt 0:00:27]} c5 {[%emt 0:00:28]} 5. c3 {[%emt 0:03:30]} Nc6 {[%emt 0:00:42]} 6. g3 {[%emt 0:00:16]} e6 {[%emt 0:03:56]} 7. Bg2 {[%emt 0:00:10]} Qc7 {[%emt 0:00:42]} 8. Ne2 {[%emt 0:00:25]} b6 {[%emt 0:01:05]} 9. Nd2 {[%emt 0:02:55]} Bb7 {[%emt 0:00:41]} 10. Nf4 {[%emt 0:05:58]} O-O-O {[%emt 0:01:17]} 11. Qa4 {[%emt 0:03:28]} Kb8 {[%emt 0:06:46]} 12. O-O-O {[%emt 0:07:16]} h5 {[%emt 0:06:21]} 13. h4 {[%emt 0:00:35]} cxd4 {[%emt 0:02:32]} 14. exd4 {[%emt 0:00:04]} Nxd4 {[%emt 0:00:57]} 15. Qxd4 {[%emt 0:01:08]} e5 {[%emt 0:00:19]} 16. Qd3 {[%emt 0:17:36]} exf4 {[%emt 0:00:25]} 17. gxf4 {[%emt 0:02:32]} Qxf4 {[%emt 0:05:50]} 18. Qf3 {[%emt 0:04:55]} Qxf3 {[%emt 0:01:08]} 19. Bxf3 {[%emt 0:00:08]} Bc5 {[%emt 0:05:12]} 20. Rh2 {[%emt 0:05:14]} d4 {[%emt 0:00:42]} 21. Bxb7 {[%emt 0:00:07]} Kxb7 {[%emt 0:00:06]} 22. Ne4 {[%emt 0:01:53]} dxc3 {[%emt 0:02:31]} 23. bxc3 {[%emt 0:01:58]} Ba3+ {[%emt 0:06:24]} 24. Kc2 {[%emt 0:00:06]} Rxd1 {[%emt 0:00:05]} 25. Kxd1 {[%emt 0:00:02]} f5 {[%emt 0:00:07]} 26. Ng5 {[%emt 0:01:23]} f6 {[%emt 0:01:32]} 27. Ne6 {[%emt 0:00:55]} Rg8 {[%emt 0:03:05]} 28. Rh3 {[%emt 0:05:02]} Rg4 {[%emt 0:02:34]} 29. Kc2 {[%emt 0:02:31]} a5 {[%emt 0:05:34]} 30. Rf3 {[%emt 0:05:46]} Rxh4 {[%emt 0:04:36]} 31. Rxf5 {[%emt 0:00:17]} Rh1 {[%emt 0:00:21]} 32. Rxf6 {[%emt 0:00:30]} h4 {[%emt 0:00:39]} 33. Kb3 {[%emt 0:06:10]} Bd6 {[%emt 0:00:32]} 34. Ng5 {[%emt 0:03:00]} Bc7 {[%emt 0:04:15]} 35. Rf3 {[%emt 0:05:22]} Rb1+ {[%emt 0:02:20]} 36. Kc2 {[%emt 0:00:35]} Rg1 {[%emt 0:00:11]} 37. Ne6 {[%emt 0:00:27]} Bd6 {[%emt 0:00:39]} 38. Nd4 {[%emt 0:00:44]} Rh1 {[%emt 0:01:15]} 39. Rf7+ {[%emt 0:06:44]} Ka6 {[%emt 0:01:12]} 40. a4 {[%emt 0:07:19]} h3 {[%emt 0:00:26]} 41. Rd7 {[%emt 0:17:38]} Bf4 {[%emt 0:01:40]} 42. Ne2 {[%emt 0:09:46]} Bb8 {[%emt 0:02:09]} 43. Nd4 {[%emt 0:00:13]} Bf4 {[%emt 0:01:38]} 44. Ne2 {[%emt 0:00:07]} Bb8 {[%emt 0:02:42]} 45. Nd4 {[%emt 0:00:04]} b5 {[%emt 0:00:23]} 46. axb5+ {[%emt 0:00:08]} Kb6 {[%emt 0:00:06]} 47. Rh7 {[%emt 0:01:36]} h2 {[%emt 0:09:20]} 48. Rh6+ {[%emt 0:00:20]} Kb7 {[%emt 0:02:12]} 49. Rh7+ {[%emt 0:00:54]} Kb6 {[%emt 0:07:45]} 50. Rh6+ {[%emt 0:00:05]} Kb7 {[%emt 0:01:19]} 51. Rh7+ {[%emt 0:00:04]} Kb6 1/2-1/2

[Event "Gideon Japhet ACP Open 2018"]
[Site "Jerusalem"]
[Date "2018.07.02"]
[Round "3"]
[White "Gleizer, Mark"]
[Black "Oratovsky, Michael"]
[Result "0-1"]
[ECO "A41"]
[WhiteElo "2161"]
[BlackElo "2461"]
[Annotator "ChessBase"]
[PlyCount "76"]
[EventDate "2018.07.01"]
[EventType "swiss"]
[EventCountry "ISR"]
[SourceTitle "playchess.com"]
[Source "ChessBase"]
[SourceQuality "1"]
[TimeControl "40/5400+30:1800+30"]

1. d4 {[%emt 0:00:00]} d6 {[%emt 0:00:00]} 2. e4 {[%emt 0:00:33]} Nf6 3. f3 {[%emt 0:00:47]} d5 {[%emt 0:01:10]} 4. e5 {[%emt 0:01:13]} Nfd7 {[%emt 0:00:14]} 5. e6 {[%emt 0:01:34]} fxe6 {[%emt 0:01:21]} 6. f4 {[%emt 0:00:18]} c5 {[%emt 0:09:32]} 7. c3 {[%emt 0:01:54]} cxd4 {[%emt 0:16:07]} 8. cxd4 {[%emt 0:00:16]} g6 {[%emt 0:07:09]} 9. Nf3 {[%emt 0:06:21]} Bg7 {[%emt 0:00:13]} 10. h4 {[%emt 0:07:13]} Nc6 {[%emt 0:08:12]} 11. h5 {[%emt 0:06:04]} Qb6 {[%emt 0:01:44]} 12. hxg6 {[%emt 0:06:57]} hxg6 {[%emt 0:02:38]} 13. Rxh8+ {[%emt 0:00:17]} Bxh8 {[%emt 0:00:05]} 14. Bd3 {[%emt 0:01:39]} Nf8 {[%emt 0:05:53]} 15. Be3 {[%emt 0:05:45]} Qxb2 {[%emt 0:14:46]} 16. Nbd2 {[%emt 0:02:49]} Qc3 {[%emt 0:13:09]} 17. Ke2 {[%emt 0:00:46]} Nb4 {[%emt 0:00:52]} 18. Bb5+ {[%emt 0:01:18]} Bd7 {[%emt 0:00:19]} 19. Bxd7+ {[%emt 0:01:21]} Nxd7 {[%emt 0:00:11]} 20. Rb1 {[%emt 0:00:40]} Qd3+ {[%emt 0:10:57]} 21. Kf2 {[%emt 0:00:10]} Nc6 {[%emt 0:00:15]} 22. Rb3 {[%emt 0:05:47]} Qa6 {[%emt 0:02:52]} 23. Qb1 {[%emt 0:03:43]} O-O-O {[%emt 0:00:25]} 24. Rb2 {[%emt 0:01:38]} g5 {[%emt 0:00:56]} 25. Nb3 {[%emt 0:02:44]} gxf4 {[%emt 0:02:08]} 26. Bxf4 {[%emt 0:00:07]} Rf8 {[%emt 0:01:11]} 27. Qc1 {[%emt 0:02:56]} Qd3 {[%emt 0:00:39]} 28. Re2 {[%emt 0:11:39]} Qf5 {[%emt 0:00:26]} 29. g3 {[%emt 0:00:28]} e5 {[%emt 0:00:30]} 30. dxe5 {[%emt 0:00:37]} Ndxe5 {[%emt 0:00:14]} 31. Ne1 {[%emt 0:08:03]} Ng6 {[%emt 0:00:43]} 32. Rc2 {[%emt 0:02:48]} Nxf4 {[%emt 0:00:35]} 33. Rxc6+ {[%emt 0:00:23]} Kb8 {[%emt 0:00:24]} 34. gxf4 {[%emt 0:02:26]} bxc6 {[%emt 0:00:12]} 35. Ng2 {[%emt 0:00:52]} Qf6 {[%emt 0:00:47]} 36. Qc5 {[%emt 0:01:31]} Qb2+ {[%emt 0:00:36]} 37. Kg1 {[%emt 0:00:25]} Rg8 {[%emt 0:00:27]} 38. Qb4+ {[%emt 0:02:24]} Kc8 {[%emt 0:00:28]} 0-1

[Event "Gideon Japhet ACP Open 2018"]
[Site "Jerusalem"]
[Date "2018.07.02"]
[Round "3"]
[White "Bronfman, Shmuel"]
[Black "Erenberg, Ariel"]
[Result "0-1"]
[ECO "D29"]
[WhiteElo "2108"]
[BlackElo "2393"]
[Annotator "NA"]
[PlyCount "90"]
[EventDate "2018.07.01"]
[EventType "swiss"]
[EventCountry "ISR"]
[SourceTitle "playchess.com"]
[Source "ChessBase"]
[SourceQuality "1"]
[TimeControl "40/5400+30:1800+30"]

1. d4 {[%emt 0:00:00]} d5 {[%emt 0:00:00]} 2. c4 {[%emt 0:00:00]} dxc4 {[%emt 0:00:00]} 3. e3 {[%emt 0:00:03]} Nf6 {[%emt 0:01:15]} 4. Bxc4 {[%emt 0:00:18]} a6 {[%emt 0:00:12]} 5. Nf3 {[%emt 0:00:19]} e6 {[%emt 0:01:30]} 6. O-O {[%emt 0:00:57]} c5 {[%emt 0:00:37]} 7. Qe2 {[%emt 0:01:07]} b5 {[%emt 0:00:06]} 8. Bb3 {[%emt 0:00:08]} Bb7 {[%emt 0:00:08]} 9. a4 {[%emt 0:00:33]} Nbd7 {[%emt 0:01:17]} 10. Rd1 {[%emt 0:02:36]} c4 {[%emt 0:04:55]} 11. Bc2 {[%emt 0:00:15]} Be7 {[%emt 0:00:22]} 12. e4 {[%emt 0:06:10]} O-O {[%emt 0:01:08]} 13. Nbd2 {[%emt 0:10:04]} Qc7 {[%emt 0:06:26]} 14. e5 {[%emt 0:02:20]} Nd5 {[%emt 0:00:58]} 15. Ne4 {[%emt 0:01:12]} h6 {[%emt 0:02:01]} 16. Ng3 {[%emt 0:03:26]} Rfc8 {[%emt 0:04:21]} 17. Qe4 {[%emt 0:06:44]} Nf8 {[%emt 0:07:39]} 18. Qg4 {[%emt 0:01:06]} f5 {[%emt 0:02:50]} 19. Bxf5 {[%emt 0:16:10]} exf5 {[%emt 0:01:49]} 20. Nxf5 {[%emt 0:00:18]} g6 {[%emt 0:03:03]} 21. Nxh6+ {[%emt 0:04:38]} Kh7 {[%emt 0:07:33]} 22. Re1 {[%emt 0:10:39]} c3 {[%emt 0:05:13]} 23. bxc3 {[%emt 0:06:38]} Qxc3 {[%emt 0:00:42]} 24. Bd2 {[%emt 0:00:13]} Qc2 {[%emt 0:01:34]} 25. Rac1 {[%emt 0:07:12]} Qd3 {[%emt 0:05:55]} 26. Qh3 {[%emt 0:09:24]} Kg7 {[%emt 0:05:21]} 27. Ng4 {[%emt 0:03:50]} Rxc1 {[%emt 0:01:17]} 28. Bxc1 {[%emt 0:00:38]} Bc8 {[%emt 0:03:42]} 29. Bh6+ {[%emt 0:00:32]} Kg8 {[%emt 0:01:07]} 30. Bxf8 {[%emt 0:00:22]} Bxf8 {[%emt 0:01:22]} 31. e6 {[%emt 0:00:27]} Ra7 {[%emt 0:06:11]} 32. Qg3 {[%emt 0:05:01]} Qf5 {[%emt 0:04:09]} 33. Nge5 {[%emt 0:01:29]} Rg7 {[%emt 0:03:18]} 34. Nf7 {[%emt 0:00:21]} Qf4 {[%emt 0:01:11]} 35. N7g5 {[%emt 0:00:55]} Qxg3 {[%emt 0:01:49]} 36. hxg3 {[%emt 0:00:02]} bxa4 {[%emt 0:00:30]} 37. Ne5 {[%emt 0:00:18]} Bb4 {[%emt 0:01:45]} 38. Rc1 {[%emt 0:00:30]} Rc7 {[%emt 0:01:18]} 39. Ra1 {[%emt 0:00:33]} a3 {[%emt 0:00:34]} 40. Nd3 {[%emt 0:00:31]} a5 {[%emt 0:02:14]} 41. Nc5 {[%emt 0:04:41]} Nc3 {[%emt 0:01:56]} 42. f4 {[%emt 0:00:13]} Ne2+ {[%emt 0:01:49]} 43. Kf2 {[%emt 0:00:06]} Nxd4 {[%emt 0:00:05]} 44. Nce4 {[%emt 0:00:12]} Nxe6 {[%emt 0:01:47]} 45. Nf6+ {[%emt 0:00:26]} Kf8 {[%emt 0:00:44]} 0-1

[Event "Gideon Japhet ACP Open 2018"]
[Site "Jerusalem"]
[Date "2018.07.02"]
[Round "3"]
[White "Ben Ari, Yannay"]
[Black "Gruenfeld, Yehuda"]
[Result "0-1"]
[ECO "B23"]
[WhiteElo "2069"]
[BlackElo "2419"]
[Annotator "NA"]
[PlyCount "100"]
[EventDate "2018.07.01"]
[EventType "swiss"]
[EventCountry "ISR"]
[SourceTitle "playchess.com"]
[Source "ChessBase"]
[SourceQuality "1"]
[TimeControl "40/5400+30:1800+30"]

1. e4 {[%emt 0:00:00]} c5 {[%emt 0:10:47]} 2. Nc3 {[%emt 0:00:00]} e6 {[%emt 0:00:12]} 3. g3 {[%emt 0:00:08]} Nc6 {[%emt 0:00:04]} 4. Bg2 {[%emt 0:00:09]} Nf6 {[%emt 0:00:06]} 5. Nge2 {[%emt 0:00:09]} d5 {[%emt 0:00:05]} 6. exd5 {[%emt 0:00:24]} exd5 {[%emt 0:00:04]} 7. d4 {[%emt 0:00:12]} cxd4 {[%emt 0:00:05]} 8. Nxd4 {[%emt 0:00:08]} Bg4 {[%emt 0:00:04]} 9. f3 {[%emt 0:03:12]} Bd7 {[%emt 0:02:00]} 10. O-O {[%emt 0:00:56]} Be7 {[%emt 0:02:34]} 11. Be3 {[%emt 0:09:19]} O-O {[%emt 0:00:27]} 12. Kh1 {[%emt 0:00:57]} Re8 {[%emt 0:00:25]} 13. Bg1 {[%emt 0:11:00]} Bb4 {[%emt 0:04:15]} 14. Nce2 {[%emt 0:06:37]} Ne5 {[%emt 0:01:21]} 15. b3 {[%emt 0:05:53]} Rc8 {[%emt 0:00:47]} 16. f4 {[%emt 0:00:36]} Neg4 {[%emt 0:01:00]} 17. Qd3 {[%emt 0:01:32]} Ne4 {[%emt 0:00:51]} 18. h3 {[%emt 0:00:30]} Ngf6 {[%emt 0:00:14]} 19. g4 {[%emt 0:01:22]} Nc3 {[%emt 0:11:27]} 20. a3 {[%emt 0:04:15]} Ba5 {[%emt 0:05:42]} 21. b4 {[%emt 0:07:45]} Nxe2 {[%emt 0:02:28]} 22. Nxe2 {[%emt 0:00:07]} Bb6 {[%emt 0:00:14]} 23. Nc3 {[%emt 0:08:32]} Bxg1 {[%emt 0:03:43]} 24. Rxg1 {[%emt 0:02:09]} Nxg4 {[%emt 0:03:17]} 25. hxg4 {[%emt 0:02:41]} Qh4+ {[%emt 0:00:31]} 26. Bh3 {[%emt 0:00:22]} d4 {[%emt 0:00:04]} 27. Qg3 {[%emt 0:06:22]} Qxg3 {[%emt 0:05:41]} 28. Rxg3 {[%emt 0:00:13]} dxc3 {[%emt 0:03:26]} 29. Rd1 {[%emt 0:02:34]} Bb5 {[%emt 0:04:31]} 30. Kg1 {[%emt 0:10:23]} Kf8 {[%emt 0:08:12]} 31. Bf1 {[%emt 0:10:13]} Bxf1 {[%emt 0:09:35]} 32. Kxf1 {[%emt 0:00:03]} Re4 {[%emt 0:00:29]} 33. f5 {[%emt 0:00:47]} h5 {[%emt 0:03:37]} 34. gxh5 {[%emt 0:02:15]} Rf4+ {[%emt 0:00:05]} 35. Kg2 {[%emt 0:00:38]} Rxf5 {[%emt 0:00:02]} 36. Rdd3 {[%emt 0:01:08]} Rxh5 {[%emt 0:05:46]} 37. Rxc3 {[%emt 0:00:04]} Rxc3 {[%emt 0:00:17]} 38. Rxc3 {[%emt 0:00:03]} Rd5 {[%emt 0:00:52]} 39. Rc7 {[%emt 0:01:44]} b5 {[%emt 0:00:07]} 40. Kf3 {[%emt 0:00:22]} a6 {[%emt 0:00:28]} 41. Rc6 {[%emt 0:31:55]} Rd2 {[%emt 0:30:29]} 42. Ke3 {[%emt 0:00:00]} Rh2 {[%emt 0:00:00]} 43. Rxa6 {[%emt 0:00:00]} Rxc2 {[%emt 0:00:00]} 44. Ra5 {[%emt 0:00:00]} g6 {[%emt 0:00:00]} 45. Kf4 {[%emt 0:00:00]} Rc3 {[%emt 0:00:00]} 46. Rxb5 {[%emt 0:00:00]} Rxa3 {[%emt 0:00:00]} 47. Rb7 {[%emt 0:00:00]} Kg7 {[%emt 0:00:00]} 48. Kg5 {[%emt 0:00:00]} Re3 {[%emt 0:00:00]} 49. b5 {[%emt 0:00:00]} Re4 {[%emt 0:00:00]} 50. b6 {[%emt 0:03:30]} Rb4 {[%emt 0:00:00]} 0-1

[Event "Gideon Japhet ACP Open 2018"]
[Site "Jerusalem"]
[Date "2018.07.02"]
[Round "3"]
[White "Nissim, Yonatan"]
[Black "Melia, Salome"]
[Result "0-1"]
[ECO "E32"]
[WhiteElo "1992"]
[BlackElo "2392"]
[Annotator "NA"]
[PlyCount "48"]
[EventDate "2018.07.01"]
[EventType "swiss"]
[EventCountry "ISR"]
[SourceTitle "playchess.com"]
[Source "ChessBase"]
[SourceQuality "1"]
[TimeControl "40/5400+30:1800+30"]

1. d4 {[%emt 0:00:00]} Nf6 {[%emt 0:00:16]} 2. c4 {[%emt 0:00:00]} e6 {[%emt 0:00:48]} 3. Nc3 {[%emt 0:00:11]} Bb4 {[%emt 0:00:08]} 4. Qc2 {[%emt 0:00:09]} d6 {[%emt 0:00:48]} 5. Nf3 {[%emt 0:00:27]} Nbd7 {[%emt 0:00:39]} 6. g3 {[%emt 0:02:47]} b6 {[%emt 0:00:54]} 7. Bg2 {[%emt 0:00:57]} Bb7 {[%emt 0:00:03]} 8. O-O {[%emt 0:01:16]} O-O {[%emt 0:01:20]} 9. Rd1 {[%emt 0:03:19]} a6 {[%emt 0:01:35]} 10. a3 {[%emt 0:08:25]} Bxc3 {[%emt 0:00:26]} 11. Qxc3 {[%emt 0:00:05]} b5 {[%emt 0:04:12]} 12. c5 {[%emt 0:21:02]} Be4 {[%emt 0:01:43]} 13. b4 {[%emt 0:06:22]} Nd5 {[%emt 0:00:53]} 14. Qb3 {[%emt 0:01:28]} h6 {[%emt 0:01:51]} 15. Bb2 {[%emt 0:01:36]} f5 {[%emt 0:03:27]} 16. Nd2 {[%emt 0:07:38]} Bxg2 {[%emt 0:00:23]} 17. Kxg2 {[%emt 0:00:04]} Qe8 {[%emt 0:03:49]} 18. e3 {[%emt 0:04:34]} Qh5 {[%emt 0:07:15]} 19. Qd3 {[%emt 0:04:11]} f4 {[%emt 0:09:44]} 20. e4 {[%emt 0:03:24]} fxg3 {[%emt 0:05:50]} 21. fxg3 {[%emt 0:03:28]} Rf2+ {[%emt 0:05:14]} 22. Kxf2 {[%emt 0:00:19]} Qxh2+ {[%emt 0:00:06]} 23. Ke1 {[%emt 0:03:09]} Rf8 {[%emt 0:00:34]} 24. Nf3 {[%emt 0:01:29]} Qxg3+ {[%emt 0:03:19]} 0-1

[Event "Gideon Japhet ACP Open 2018"]
[Site "Jerusalem"]
[Date "2018.07.02"]
[Round "3"]
[White "Aizenberg, Benny"]
[Black "Bagrationi, Alexander"]
[Result "0-1"]
[ECO "B60"]
[WhiteElo "1887"]
[BlackElo "2539"]
[Annotator "ChessBase"]
[PlyCount "108"]
[EventDate "2018.07.01"]
[EventType "swiss"]
[EventCountry "ISR"]
[SourceTitle "playchess.com"]
[Source "ChessBase"]
[SourceQuality "1"]
[TimeControl "40/5400+30:1800+30"]

1. e4 {[%emt 0:00:00]} c5 {[%emt 0:00:01]} 2. Nf3 {[%emt 0:00:00]} d6 {[%emt 0:00:07]} 3. d4 {[%emt 0:00:00]} cxd4 {[%emt 0:00:04]} 4. Nxd4 {[%emt 0:00:00]} Nf6 {[%emt 0:00:04]} 5. Nc3 {[%emt 0:00:00]} Nc6 {[%emt 0:00:07]} 6. Bg5 {[%emt 0:02:14]} Bd7 {[%emt 0:00:15]} 7. Be2 {[%emt 0:00:52]} Qa5 {[%emt 0:00:41]} 8. Bxf6 {[%emt 0:00:53]} gxf6 {[%emt 0:00:04]} 9. O-O {[%emt 0:00:04]} Bg7 {[%emt 0:00:48]} 10. Nd5 {[%emt 0:01:27]} e6 {[%emt 0:01:25]} 11. Ne3 {[%emt 0:00:46]} Nxd4 {[%emt 0:06:43]} 12. Qxd4 {[%emt 0:00:06]} Qc5 {[%emt 0:00:24]} 13. Rad1 {[%emt 0:04:12]} Qxd4 {[%emt 0:02:36]} 14. Rxd4 {[%emt 0:01:30]} f5 {[%emt 0:05:41]} 15. Rxd6 {[%emt 0:00:40]} fxe4 {[%emt 0:00:14]} 16. Rfd1 {[%emt 0:04:39]} Bc6 {[%emt 0:00:21]} 17. b4 {[%emt 0:03:36]} Be5 {[%emt 0:02:14]} 18. b5 {[%emt 0:01:11]} Bxd6 {[%emt 0:01:40]} 19. bxc6 {[%emt 0:00:04]} Ke7 {[%emt 0:00:18]} 20. cxb7 {[%emt 0:00:24]} Rad8 {[%emt 0:00:36]} 21. Nc4 {[%emt 0:01:30]} Bc7 {[%emt 0:00:14]} 22. Rb1 {[%emt 0:00:24]} Rd5 {[%emt 0:01:11]} 23. a4 {[%emt 0:04:03]} Rb8 {[%emt 0:03:52]} 24. f3 {[%emt 0:03:10]} f5 {[%emt 0:00:39]} 25. Kf2 {[%emt 0:01:35]} exf3 {[%emt 0:03:20]} 26. Bxf3 {[%emt 0:02:31]} Rc5 {[%emt 0:00:25]} 27. Be2 {[%emt 0:00:21]} Bd8 {[%emt 0:02:14]} 28. Ke3 {[%emt 0:00:22]} Rc7 {[%emt 0:01:46]} 29. Ne5 {[%emt 0:17:36]} Kf6 {[%emt 0:01:16]} 30. Rb5 {[%emt 0:07:33]} a6 {[%emt 0:02:16]} 31. Rc5 {[%emt 0:09:24]} Rbxb7 {[%emt 0:08:04]} 32. Nc6 {[%emt 0:01:03]} Rb6 {[%emt 0:02:31]} 33. Bf3 {[%emt 0:00:08]} Be7 {[%emt 0:00:14]} 34. Rc4 {[%emt 0:00:05]} Bd6 {[%emt 0:00:53]} 35. a5 {[%emt 0:02:35]} Rb5 {[%emt 0:02:00]} 36. Rh4 {[%emt 0:00:34]} h5 {[%emt 0:00:38]} 37. Nd4 {[%emt 0:03:56]} Bc5 {[%emt 0:00:54]} 38. Rxh5 {[%emt 0:01:52]} Ke5 {[%emt 0:02:01]} 39. c3 {[%emt 0:01:01]} Rb3 {[%emt 0:00:40]} 40. Kd2 {[%emt 0:04:10]} Bxd4 {[%emt 0:00:57]} 41. cxd4+ {[%emt 0:30:07]} Kxd4 {[%emt 0:30:14]} 42. Rh4+ {[%emt 0:00:06]} Ke5 {[%emt 0:00:14]} 43. Ra4 {[%emt 0:00:58]} Rb2+ {[%emt 0:00:03]} 44. Kd3 {[%emt 0:00:11]} Rc5 {[%emt 0:00:49]} 45. h4 {[%emt 0:01:04]} Rbb5 {[%emt 0:01:33]} 46. h5 {[%emt 0:00:07]} Kf6 {[%emt 0:00:05]} 47. h6 {[%emt 0:01:13]} Kg6 {[%emt 0:01:14]} 48. Rh4 {[%emt 0:00:05]} Rc7 {[%emt 0:00:17]} 49. Rd4 {[%emt 0:02:05]} Rxa5 {[%emt 0:00:19]} 50. Rd6 {[%emt 0:00:06]} Kf6 {[%emt 0:00:36]} 51. Bc6 {[%emt 0:01:13]} Rh7 {[%emt 0:00:14]} 52. Kc4 {[%emt 0:00:55]} Rxh6 {[%emt 0:00:12]} 53. Kb4 {[%emt 0:00:09]} Ra1 {[%emt 0:00:08]} 54. Ba4 {[%emt 0:00:30]} Rh4+ {[%emt 0:00:04]} 0-1

[Event "Gideon Japhet ACP Open 2018"]
[Site "Jerusalem"]
[Date "2018.07.03"]
[Round "4"]
[White "Boruchovsky, Avital"]
[Black "Gorodetzky, David"]
[Result "1-0"]
[ECO "D37"]
[WhiteElo "2558"]
[BlackElo "2460"]
[Annotator "ChessBase"]
[PlyCount "111"]
[EventDate "2018.07.01"]
[EventType "swiss"]
[EventCountry "ISR"]
[SourceTitle "playchess.com"]
[Source "ChessBase"]
[SourceQuality "1"]
[TimeControl "40/5400+30:1800+30"]

1. d4 {[%emt 0:02:04]} Nf6 {[%emt 0:00:00]} 2. Nf3 {[%emt 0:00:15]} e6 {[%emt 0:00:00]} 3. c4 {[%emt 0:00:06]} d5 {[%emt 0:00:00]} 4. Nc3 {[%emt 0:01:12]} dxc4 {[%emt 0:01:19]} 5. e3 {[%emt 0:00:34]} a6 {[%emt 0:02:53]} 6. a4 {[%emt 0:02:36]} c5 {[%emt 0:00:43]} 7. Bxc4 {[%emt 0:00:14]} Nc6 {[%emt 0:02:44]} 8. O-O {[%emt 0:01:25]} Be7 {[%emt 0:00:33]} 9. dxc5 {[%emt 0:05:38]} Bxc5 {[%emt 0:16:19]} 10. Qe2 {[%emt 0:08:04]} O-O {[%emt 0:07:30]} 11. e4 {[%emt 0:01:10]} e5 {[%emt 0:13:38]} 12. Rd1 {[%emt 0:04:34]} Qb6 {[%emt 0:11:55]} 13. Bg5 {[%emt 0:03:11]} Nd4 {[%emt 0:03:31]} 14. Nxd4 {[%emt 0:02:18]} Bxd4 {[%emt 0:01:23]} 15. a5 {[%emt 0:01:46]} Qc6 {[%emt 0:03:40]} 16. Bd5 {[%emt 0:07:56]} Qd6 {[%emt 0:17:56]} 17. h3 {[%emt 0:08:51]} Be6 {[%emt 0:08:38]} 18. Bxf6 {[%emt 0:02:27]} gxf6 {[%emt 0:00:37]} 19. Bxb7 {[%emt 0:00:28]} Ra7 {[%emt 0:01:57]} 20. Bd5 {[%emt 0:00:18]} f5 {[%emt 0:02:57]} 21. Qf3 {[%emt 0:01:11]} Rd7 {[%emt 0:01:31]} 22. Rd3 {[%emt 0:02:59]} Bxd5 {[%emt 0:00:35]} 23. Nxd5 {[%emt 0:04:30]} f4 {[%emt 0:00:35]} 24. Rad1 {[%emt 0:03:13]} f5 {[%emt 0:00:31]} 25. Nc3 {[%emt 0:02:24]} Qg6 {[%emt 0:00:23]} 26. exf5 {[%emt 0:01:11]} Qxf5 {[%emt 0:00:02]} 27. Qe4 {[%emt 0:00:37]} Qxe4 {[%emt 0:00:28]} 28. Nxe4 {[%emt 0:00:04]} Rb7 {[%emt 0:00:07]} 29. Rb1 {[%emt 0:00:33]} Rfb8 {[%emt 0:00:38]} 30. b3 {[%emt 0:01:21]} Rc7 {[%emt 0:01:24]} 31. g3 {[%emt 0:00:20]} Rf8 {[%emt 0:00:27]} 32. Kg2 {[%emt 0:03:06]} fxg3 {[%emt 0:00:29]} 33. Rxg3+ {[%emt 0:00:11]} Kh8 {[%emt 0:00:01]} 34. b4 {[%emt 0:00:42]} Rc2 {[%emt 0:00:53]} 35. Rf3 {[%emt 0:00:32]} Rb8 {[%emt 0:00:36]} 36. Rf6 {[%emt 0:03:24]} Bb2 {[%emt 0:00:35]} 37. Rg1 {[%emt 0:03:29]} Rg8+ {[%emt 0:00:31]} 38. Kh1 {[%emt 0:00:26]} Rxg1+ {[%emt 0:00:04]} 39. Kxg1 {[%emt 0:00:04]} Rc4 {[%emt 0:00:06]} 40. f3 {[%emt 0:00:43]} Rxb4 {[%emt 0:00:47]} 41. Rxa6 {[%emt 0:30:09]} Bd4+ {[%emt 0:07:55]} 42. Kg2 {[%emt 0:00:00]} Rb1 {[%emt 0:01:58]} 43. Rc6 {[%emt 0:00:00]} Kg7 {[%emt 0:04:08]} 44. a6 {[%emt 0:00:00]} Rg1+ {[%emt 0:04:44]} 45. Kh2 {[%emt 0:00:00]} Rf1 {[%emt 0:00:09]} 46. Kg3 {[%emt 0:00:00]} Rg1+ {[%emt 0:01:19]} 47. Kh4 {[%emt 0:00:00]} Rf1 {[%emt 0:03:49]} 48. Kg4 {[%emt 0:00:00]} h5+ {[%emt 0:04:37]} 49. Kxh5 {[%emt 0:00:00]} Rxf3 {[%emt 0:00:03]} 50. Rc7+ {[%emt 0:00:00]} Kg8 {[%emt 0:05:51]} 51. Kg6 {[%emt 0:00:00]} Kf8 {[%emt 0:00:10]} 52. Ng5 {[%emt 0:00:00]} Ra3 {[%emt 0:00:43]} 53. Ne6+ {[%emt 0:00:00]} Ke8 {[%emt 0:00:10]} 54. Nxd4 {[%emt 0:00:00]} Rxa6+ {[%emt 0:00:10]} 55. Nc6 {[%emt 0:00:00]} e4 {[%emt 0:00:48]} 56. Kg7 {[%emt 0:00:00]} 1-0